bitfinex/quotes_SOLUSD_20240725
["timestamp","ask_amount","ask_price","bid_price","bid_amount"]
[1721938301090,12.0944,166.4,166.23,2.47746384]
[1721938301288,6.0845,166.4,166.23,2.47746384]
[1721938301493,6.0845,166.4,166.24,1.03755328]
[1721938301670,6.0845,166.4,166.25,6.15477377]
[1721938301983,6.0845,166.4,166.23,2.47746384]
[1721938302194,6.0845,166.4,166.22,45.33226823]
[1721938302764,6.0845,166.4,166.23,20.0]
[1721938303366,12.0942,166.4,166.23,20.0]
[1721938303561,6.0845,166.4,166.23,20.0]
[1721938304967,6.0845,166.4,166.26,38.14]
[1721938305175,6.0845,166.4,166.27,65.0]
[1721938305491,6.0845,166.4,166.27,20.0]
[1721938306181,12.0941,166.4,166.27,20.0]
[1721938306574,6.1299,166.39,166.26,38.14]
[1721938306779,1.50359272,166.38,166.27,20.0]
[1721938306983,1.50359272,166.38,166.23,20.0]
[1721938307891,1.50359272,166.38,166.24,45.0]
[1721938308092,1.50359272,166.38,166.25,20.0]
[1721938308294,1.50359272,166.38,166.26,45.0]
[1721938308504,1.50359272,166.38,166.27,20.0]
[1721938308786,1.50359272,166.38,166.28,45.0]
[1721938309183,1.50359272,166.38,166.25,20.0]
[1721938309384,1.50359272,166.38,166.26,45.0]
[1721938309572,1.50359272,166.38,166.27,20.0]
[1721938309889,28.6917,166.37,166.24,31.28]
[1721938310191,1.5036675,166.36,166.24,31.28]
[1721938310372,1.50358593,166.35,166.24,31.28]
[1721938311097,1.50358593,166.35,166.25,45.0]
[1721938311765,1.50358593,166.35,166.26,20.0]
[1721938312078,24.1840933,166.37,166.27,45.0]
[1721938312271,6.2432,166.35,166.22,2.43353573]
[1721938312592,6.2432,166.35,166.18,6.32593682]
[1721938312593,6.0122,166.33,166.18,31.28]
[1721938312790,1.50393742,166.32,166.18,31.28]
[1721938312973,1.50393742,166.32,166.18,33.72906149]
[1721938314271,24.3805005,166.31,166.2,31.28]
[1721938314491,22.8767,166.31,166.2,31.28]
[1721938314662,1.50387778,166.3,166.2,31.28]
[1721938314866,1.50387891,166.29,166.2,31.28]
[1721938315081,1.50388073,166.3,166.2,31.28]
[1721938315494,1.50389055,166.29,166.2,31.28]
[1721938315695,1.50389055,166.29,166.21,65.0]
[1721938315995,1.50396131,166.3,166.21,65.0]
[1721938316373,1.5039605,166.29,166.21,65.0]
[1721938317474,22.8767,166.31,166.21,65.0]
[1721938317799,22.8767,166.31,166.24,31.28]
[1721938318097,6.3275,166.35,166.28,31.28]
[1721938318303,6.3275,166.39,166.32,31.28]
[1721938318486,6.3275,166.39,166.33,20.0]
[1721938318669,6.3275,166.39,166.34,45.0]
[1721938319676,6.3275,166.39,166.28,31.28]
[1721938319976,7.83047968,166.39,166.29,65.0]
[1721938320177,6.3275,166.39,166.29,65.0]
[1721938320577,7.83043182,166.39,166.29,65.0]
[1721938321198,6.3275,166.39,166.29,65.0]
[1721938321395,7.83040757,166.39,166.29,65.0]
[1721938321706,6.3275,166.39,166.29,65.0]
[1721938322008,6.3275,166.39,166.32,31.28]
[1721938322232,6.3275,166.39,166.33,65.0]
[1721938323401,6.1086,166.44,166.33,45.0]
[1721938323605,6.1086,166.49,166.4,31.28]
[1721938323801,6.1086,166.49,166.41,65.0]
[1721938324883,1.50191898,166.48,166.34,14.40125533]
[1721938325213,1.50191898,166.48,166.32,2.43090506]
[1721938325416,6.4091,166.46,166.32,2.43090506]
[1721938325576,1.50276776,166.45,166.23,15.8121]
[1721938325784,6.0106,166.38,166.23,5.97674968]
[1721938326017,22.0183,166.36,166.23,5.97674968]
[1721938326221,23.52162745,166.36,166.23,5.97674968]
[1721938326508,22.0183,166.36,166.23,5.97674968]
[1721938327312,6.128,166.36,166.24,46.58450565]
[1721938327689,6.128,166.36,166.25,20.0]
[1721938329318,22.0183,166.41,166.26,20.0]
[1721938329528,22.0183,166.41,166.28,58.16]
[1721938329820,22.0183,166.41,166.29,65.0]
[1721938330194,6.128,166.41,166.29,65.0]
[1721938330706,15.8903,166.46,166.33,20.0]
[1721938330914,15.8903,166.46,166.34,45.0]
[1721938331093,15.8903,166.46,166.35,20.0]
[1721938331415,15.8903,166.46,166.36,45.0]
[1721938331621,15.8903,166.46,166.37,20.0]
[1721938331798,15.8903,166.46,166.38,45.0]
[1721938331998,15.8903,166.46,166.39,20.0]
[1721938332199,15.8903,166.46,166.4,45.0]
[1721938333121,17.39227864,166.46,166.4,45.0]
[1721938333524,17.39227864,166.46,166.34,2.42521481]
[1721938333525,1.50204808,166.45,166.32,38.16]
[1721938333720,1.50204808,166.45,166.18,1.03741506]
[1721938333721,1.50204808,166.45,166.29,5.97674968]
[1721938334231,6.0094,166.41,166.25,14.40125533]
[1721938334446,1.50276033,166.4,166.25,14.40125533]
[1721938334742,22.05195297,166.46,166.25,5.97674968]
[1721938334743,6.0107,166.37,166.25,5.97674968]
[1721938334912,15.9454,166.35,166.21,6.15994297]
[1721938335114,15.9454,166.35,166.2,52.56125533]
[1721938335115,7.51499337,166.34,166.2,52.56125533]
[1721938335507,1.50329337,166.34,166.2,52.56125533]
[1721938335710,21.9568,166.35,166.2,14.40125533]
[1721938335931,15.9454,166.35,166.21,8.42450565]
[1721938336307,15.9454,166.35,166.22,65.0]
[1721938336620,7.51502354,166.34,166.22,45.0]
[1721938336821,17.44877818,166.35,166.22,45.0]
[1721938337135,15.9454,166.35,166.22,45.0]
[1721938337311,6.3758,166.38,166.22,53.42450565]
[1721938337511,1.50277921,166.37,166.22,53.42450565]
[1721938337906,6.3758,166.38,166.23,8.42450565]
[1721938338106,6.3758,166.38,166.24,65.0]
[1721938338302,1.50291635,166.37,166.24,65.0]
[1721938338553,1.50291423,166.36,166.24,65.0]
[1721938338713,6.0113,166.36,166.24,65.0]
[1721938338913,6.0107,166.37,166.24,65.0]
[1721938339320,7.51433419,166.36,166.24,65.0]
[1721938339752,1.5032316,166.35,166.24,65.0]
[1721938339924,6.0118,166.34,166.22,5.97674968]
[1721938340134,6.3758,166.38,166.19,8.42450565]
[1721938340135,6.0127,166.32,166.19,8.42450565]
[1721938340424,1.5036883,166.31,166.17,6.77902578]
[1721938340626,6.0129,166.31,166.17,6.77902578]
[1721938340831,1.50375801,166.3,166.17,6.77902578]
[1721938341039,1.50376837,166.29,166.17,6.77902578]
[1721938341843,6.0784,166.3,166.18,20.0]
[1721938342355,1.50398133,166.29,166.18,20.0]
[1721938342513,7.58231454,166.3,166.18,20.0]
[1721938342716,1.50378021,166.29,166.18,20.0]
[1721938342923,6.0784,166.3,166.18,20.0]
[1721938343124,7.58208488,166.3,166.18,20.0]
[1721938343325,7.58208488,166.3,166.19,45.0]
[1721938343528,6.0784,166.3,166.2,20.0]
[1721938343834,6.0784,166.33,166.21,45.0]
[1721938344033,1.50333577,166.32,166.22,20.0]
[1721938344348,6.0129,166.31,166.23,45.0]
[1721938344715,1.50377831,166.3,166.22,20.0]
[1721938344942,1.50371488,166.29,166.23,45.0]
[1721938345147,6.0127,166.32,166.18,20.0]
[1721938345434,21.6067,166.3,166.19,45.0]
[1721938345646,1.50397476,166.29,166.2,20.0]
[1721938346718,1.50397476,166.29,166.21,45.0]
[1721938347422,1.50397476,166.29,166.2,20.0]
[1721938347620,1.50397476,166.29,166.17,0.8022761]
[1721938348141,6.6307,166.28,166.17,0.8022761]
[1721938348341,1.50391663,166.27,166.17,0.8022761]
[1721938348640,1.50395516,166.27,166.17,0.8022761]
[1721938348827,6.6307,166.28,166.17,0.8022761]
[1721938349031,1.50385496,166.27,166.17,20.8022761]
[1721938349338,1.5039815,166.27,166.18,45.0]
[1721938349644,1.50389005,166.26,166.19,20.0]
[1721938349821,6.6307,166.28,166.19,20.0]
[1721938350342,6.6307,166.28,166.15,2.39207463]
[1721938350343,15.668,166.27,166.15,2.39207463]
[1721938350516,6.0174,166.19,166.0,132.61643396]
[1721938350717,1.50488335,166.18,166.0,137.94816697]
[1721938350913,1.50488335,166.18,166.01,11.50013082]
[1721938351118,1.50495791,166.17,166.01,11.50013082]
[1721938351339,1.50495659,166.22,166.01,11.50013082]
[1721938351546,6.0171,166.2,166.01,11.50013082]
[1721938351841,15.8415,166.18,166.01,11.50013082]
[1721938352027,1.5050183,166.17,166.01,11.50013082]
[1721938352424,17.34640897,166.18,166.01,11.50013082]
[1721938352637,1.50486177,166.17,166.01,6.16839781]
[1721938352945,1.50487538,166.22,166.01,26.16839781]
[1721938353239,22.4722,166.23,166.04,38.16]
[1721938353546,6.0162,166.22,166.02,14.15214425]
[1721938353724,7.52073045,166.22,166.03,40.0]
[1721938353925,22.4722,166.23,166.05,20.0]
[1721938354135,1.50432934,166.22,166.06,45.0]
[1721938354643,1.50432934,166.22,166.01,8.14706336]
[1721938354644,6.5196,166.21,166.01,8.14706336]
[1721938354947,6.0175,166.19,166.01,8.14706336]
[1721938355254,1.50498642,166.19,166.01,8.14706336]
[1721938355742,8.02459204,166.21,166.02,20.0]
[1721938356045,1.50459574,166.2,166.02,45.0]
[1721938356341,1.5047806,166.19,166.03,40.0]
[1721938356548,6.5196,166.21,166.04,45.0]
[1721938356726,6.5196,166.21,166.05,20.0]
[1721938356925,6.5196,166.21,166.06,45.0]
[1721938357145,6.5196,166.21,166.07,20.0]
[1721938357330,6.5196,166.21,166.08,45.0]
[1721938357537,6.5196,166.21,166.09,20.0]
[1721938357923,6.5196,166.21,166.1,45.0]
[1721938358143,6.5196,166.21,166.11,20.0]
[1721938358348,6.5196,166.21,166.12,45.0]
[1721938358554,6.5196,166.21,166.13,20.0]
[1721938358744,6.5196,166.21,166.14,45.0]
[1721938359050,1.50407616,166.28,166.14,45.0]
[1721938359051,6.0523,166.27,166.15,20.0]
[1721938359235,6.0523,166.27,166.16,45.0]
[1721938359437,6.0133,166.31,166.17,20.0]
[1721938359627,6.0133,166.31,166.18,45.0]
[1721938359960,13.53013996,166.31,166.19,20.0]
[1721938360257,6.0133,166.3,166.19,20.0]
[1721938360424,6.0133,166.3,166.2,45.0]
[1721938360626,6.0133,166.31,166.21,20.0]
[1721938360921,6.014,166.28,166.21,20.0]
[1721938361146,6.0133,166.31,166.07,53.73542202]
[1721938361147,1.5039804,166.27,166.07,53.73542202]
[1721938361353,1.50420881,166.26,166.07,7.0529886]
[1721938361533,1.50420881,166.26,166.09,2.48657101]
[1721938361935,6.014,166.28,166.09,2.48657101]
[1721938362140,7.51846894,166.27,166.09,2.48657101]
[1721938362331,1.50415117,166.26,166.09,2.48657101]
[1721938362535,6.015,166.25,166.09,2.48657101]
[1721938362847,1.50427922,166.24,166.09,2.48657101]
[1721938363060,1.50414319,166.26,166.09,2.48657101]
[1721938363558,6.0133,166.31,166.12,20.0]
[1721938363744,1.50374457,166.3,166.13,20.0]
[1721938364054,6.015,166.26,166.11,20.0]
[1721938364262,6.0151,166.25,166.09,2.48657101]
[1721938364429,7.51911749,166.26,166.08,16.81576707]
[1721938364781,1.50431749,166.26,166.08,16.81576707]
[1721938364929,7.51911749,166.26,166.08,16.81576707]
[1721938365132,6.0151,166.25,166.08,16.81576707]
[1721938365358,1.50428834,166.29,166.08,16.81576707]
[1721938365656,15.4627,166.25,166.09,20.0]
[1721938365959,6.0158,166.23,166.08,19.29927161]
[1721938366332,1.50444848,166.22,166.08,19.29927161]
[1721938366855,8.07394519,166.24,166.08,19.29927161]
[1721938367432,6.5695,166.24,166.11,20.0]
[1721938367836,6.5888,166.29,166.13,20.0]
[1721938368153,6.5888,166.29,166.14,45.0]
[1721938368464,6.5888,166.29,166.15,20.0]
[1721938368759,6.5888,166.29,166.16,45.0]
[1721938368975,6.5888,166.29,166.17,26.3775]
[1721938369262,6.5888,166.29,166.18,45.0]
[1721938369458,6.5888,166.29,166.19,20.0]
[1721938369631,6.5888,166.29,166.2,45.0]
[1721938369969,6.5888,166.29,166.21,20.0]
[1721938370338,1.50363214,166.28,166.21,20.0]
[1721938371259,6.5888,166.29,166.21,20.0]
[1721938371666,8.09252912,166.29,166.21,20.0]
[1721938371862,14.10612912,166.29,166.13,20.0]
[1721938372070,6.0139,166.28,166.14,45.0]
[1721938372276,14.10612912,166.29,166.15,20.0]
[1721938372469,6.5888,166.29,166.16,45.0]
[1721938372668,6.5888,166.29,166.17,20.0]
[1721938372952,6.5888,166.29,166.18,45.0]
[1721938373262,6.5888,166.29,166.19,20.0]
[1721938373460,6.0146,166.27,166.19,20.0]
[1721938373666,7.51883106,166.26,166.19,20.0]
[1721938373863,6.0149,166.26,166.13,20.0]
[1721938374061,6.0157,166.24,166.12,8.95595947]
[1721938374272,6.016,166.23,166.12,8.95595947]
[1721938374582,6.0154,166.24,166.08,29.42569368]
[1721938374887,6.0158,166.23,166.08,29.42569368]
[1721938375180,6.0158,166.23,166.08,29.32569368]
[1721938375376,6.0168,166.2,166.08,29.32569368]
[1721938375553,14.06168401,166.19,166.08,22.1192]
[1721938375875,16.5066,166.17,166.04,6.0197]
[1721938376091,16.5066,166.17,166.04,8.43941256]
[1721938376377,6.0191,166.14,166.0,50.43023396]
[1721938376594,22.5248,166.17,166.0,50.43023396]
[1721938376761,22.5248,166.17,166.0,56.6026531]
[1721938376967,24.02974634,166.17,166.0,56.6026531]
[1721938377166,16.5066,166.17,166.0,56.6026531]
[1721938377371,6.0189,166.15,166.0,52.91592983]
[1721938377871,6.0186,166.15,166.0,52.91592983]
[1721938378258,6.0183,166.16,166.0,68.11812983]
[1721938378458,6.0183,166.16,166.0,74.28884573]
[1721938378675,6.0183,166.16,166.01,20.0]
[1721938379054,16.5066,166.17,166.01,20.0]
[1721938379360,1.50481572,166.16,166.01,20.0]
[1721938379551,16.5066,166.17,166.01,20.0]
[1721938379552,6.0187,166.15,166.01,20.0]
[1721938379754,24.02941776,166.17,166.01,20.0]
[1721938379972,22.5246,166.17,166.02,45.0]
[1721938380162,22.5246,166.17,166.03,20.0]
[1721938380367,16.5066,166.17,166.04,45.0]
[1721938380566,16.5066,166.17,166.05,20.0]
[1721938380766,16.5066,166.17,166.06,45.0]
[1721938381072,6.54,166.19,166.07,20.0]
[1721938381274,15.1597,166.22,166.09,6.4245]
[1721938381473,15.1597,166.22,166.1,65.0]
[1721938381779,6.4708,166.23,166.1,65.0]
[1721938381960,21.6305,166.27,166.1,65.0]
[1721938382160,1.50396193,166.26,166.1,65.0]
[1721938382390,7.51856193,166.26,166.1,65.0]
[1721938382554,1.50396193,166.26,166.1,65.0]
[1721938382755,1.50399007,166.26,166.1,65.0]
[1721938383289,6.016,166.23,166.1,65.0]
[1721938383464,6.0167,166.21,166.1,65.0]
[1721938383655,6.0157,166.23,166.1,65.0]
[1721938383873,23.1348432,166.27,166.1,67.3988567]
[1721938384177,1.5043432,166.26,166.1,67.3988567]
[1721938384368,23.13482119,166.27,166.1,67.3988567]
[1721938384564,23.13482119,166.27,166.1,20.0]
[1721938384565,16.54085797,166.26,166.1,20.0]
[1721938384756,6.0165,166.21,166.1,20.0]
[1721938384963,6.0176,166.18,166.09,22.0614]
[1721938385164,1.50473969,166.23,166.09,22.0614]
[1721938385360,1.50473969,166.23,166.05,6.5272]
[1721938385674,6.0186,166.16,166.05,6.5272]
[1721938385878,21.3799,166.22,166.05,6.5272]
[1721938385879,1.50502215,166.15,166.05,6.5272]
[1721938386064,1.50514942,166.14,166.04,15.5819]
[1721938386262,15.7923,166.17,166.04,15.5819]
[1721938386565,17.29731377,166.17,166.04,15.5819]
[1721938386764,6.0191,166.14,166.04,15.5819]
[1721938386989,6.0187,166.15,166.04,15.5819]
[1721938387161,6.0183,166.16,166.04,15.5819]
[1721938387361,1.50505422,166.16,166.01,6.5272]
[1721938387701,6.0202,166.11,166.01,6.5272]
[1721938387862,1.50540899,166.1,166.01,6.5272]
[1721938388686,1.50540899,166.1,166.0,50.43023396]
[1721938389178,7.99461583,166.13,166.0,50.43023396]
[1721938389492,6.0209,166.09,166.0,50.43023396]
[1721938389681,6.0201,166.11,166.0,50.43023396]
[1721938389867,1.50569787,166.1,166.0,50.43023396]
[1721938390399,7.52639787,166.1,166.0,50.43023396]
[1721938390689,6.022,166.06,166.0,50.43023396]
[1721938390864,1.50569787,166.1,166.0,50.43023396]
[1721938391069,6.0211,166.09,166.0,50.43023396]
[1721938391271,6.5627,166.06,166.0,50.43023396]
[1721938391471,21.3931,166.01,166.0,10.43043396]
[1721938391801,21.3931,166.01,165.83,3.25527408]
[1721938391802,6.0288,165.88,165.83,3.25527408]
[1721938392086,15.066,165.94,165.83,3.25527408]
[1721938392087,6.0281,165.89,165.83,3.25527408]
[1721938392390,6.0281,165.89,165.83,7.408e-05]
[1721938392391,6.0299,165.84,165.83,7.408e-05]
[1721938392591,45.0,165.88,165.83,7.408e-05]
[1721938392800,40.0,165.87,165.63,38.27]
[1721938393096,45.0,165.86,165.76,6.0326]
[1721938393265,20.0,165.85,165.58,44.6628]
[1721938393462,15.0774,165.82,165.58,44.6628]
[1721938393662,6.033,165.76,165.68,6.0356]
[1721938393908,1.50906833,165.75,165.58,44.6628]
[1721938394199,45.0,165.86,165.58,44.6628]
[1721938394200,1.50870183,165.82,165.62,38.27]
[1721938394497,21.50833963,165.9,165.62,38.27]
[1721938394666,6.0304,165.83,165.74,6.0332]
[1721938394866,1.50839743,165.82,165.76,6.0326]
[1721938395073,1.50826593,165.87,165.64,38.27]
[1721938395399,1.50826593,165.87,165.71,22.7149]
[1721938395569,1.50826593,165.87,165.72,20.0]
[1721938395768,38.27,165.96,165.73,20.0]
[1721938395986,1.50719981,165.95,165.74,58.27]
[1721938396191,1.50703743,165.99,165.74,58.27]
[1721938396405,1.50706682,165.98,165.92,6.0267]
[1721938396599,1.50706682,165.98,165.9,6.0275]
[1721938396901,1.50706682,165.98,165.93,6.0265]
[1721938397075,1.50706682,165.98,165.94,6.026]
[1721938397272,1.50660502,165.99,165.94,6.0259]
[1721938397568,38.27,166.04,165.86,16.5708]
[1721938397569,1.50660502,165.97,165.86,16.5708]
[1721938397790,1.50683568,165.96,165.88,6.0281]
[1721938397990,1.50708595,165.95,165.89,6.028]
[1721938398192,7.53298595,165.95,165.86,16.5708]
[1721938398377,1.50708595,165.95,165.86,16.5708]
[1721938398578,7.53175668,165.99,165.86,16.5708]
[1721938398785,1.50705668,165.99,165.92,6.0267]
[1721938398988,1.50705668,165.99,165.87,20.0]
[1721938399871,1.50705668,165.99,165.93,6.0266]
[1721938400079,1.50705668,165.99,165.94,6.0262]
[1721938400305,21.50667041,166.03,165.92,6.0268]
[1721938400492,21.50667041,166.03,165.87,20.0]
[1721938400674,6.0248,165.98,165.91,6.0272]
[1721938400994,1.50691081,165.97,165.87,20.0]
[1721938401204,1.50691081,165.97,165.89,6.0279]
[1721938401572,1.50691081,165.97,165.87,20.0]
[1721938401896,1.50693919,165.96,165.87,20.0]
[1721938402084,1.5071567,165.95,165.79,21.9862]
[1721938402399,6.0274,165.91,165.79,21.9862]
[1721938402600,1.50745921,165.9,165.79,21.9862]
[1721938402902,1.50743199,165.89,165.84,6.0295]
[1721938403273,7.53563199,165.89,165.79,15.869]
[1721938403475,1.50743199,165.89,165.79,15.869]
[1721938403687,1.50768669,165.88,165.79,15.869]
[1721938403891,6.16785888,165.88,165.83,6.0301]
[1721938404079,1.50765045,165.87,165.83,6.0301]
[1721938404275,1.50765045,165.87,165.7,6.36785888]
[1721938404276,45.0,165.87,165.7,6.36785888]
[1721938404483,6.0314,165.8,165.7,0.2]
[1721938404676,1.50853296,165.79,165.7,0.2]
[1721938404881,1.50839259,165.78,165.7,0.2]
[1721938405090,1.50836374,165.84,165.7,0.2]
[1721938405287,6.0303,165.83,165.7,0.2]
[1721938405492,7.53881332,165.82,165.7,0.2]
[1721938405688,1.50811332,165.82,165.76,6.0326]
[1721938406095,6.031,165.81,165.75,6.0331]
[1721938406406,6.0315,165.8,165.73,6.0335]
[1721938406570,53.3443,165.85,165.68,0.52903908]
[1721938406769,38.27,165.85,165.68,0.52880696]
[1721938406971,6.0307,165.82,165.68,0.52891361]
[1721938407194,1.50823893,165.82,165.68,0.52891361]
[1721938407578,1.50823893,165.82,165.68,20.52891361]
[1721938407767,1.50828313,165.83,165.69,45.0]
[1721938407970,1.50808967,165.84,165.7,20.52860107]
[1721938408307,1.50810639,165.88,165.71,45.5286412]
[1721938408486,1.50810639,165.88,165.72,20.0]
[1721938408693,7.53650639,165.88,165.73,45.52768777]
[1721938408894,1.50770772,165.93,165.74,20.52768439]
[1721938409096,1.50741167,165.92,165.75,45.0]
[1721938409294,6.16681998,165.92,165.76,20.52621896]
[1721938409492,5.45641529,165.95,165.77,45.5262137]
[1721938409787,5.45641529,165.95,165.79,22.926]
[1721938410013,5.45641529,165.95,165.8,65.52564728]
[1721938410515,1.50670468,165.94,165.8,65.52564728]
[1721938410811,1.50670468,165.94,165.8,65.0]
[1721938411014,1.50670468,165.94,165.81,0.52595028]
[1721938411690,5.45641529,165.95,165.81,0.52595028]
[1721938411907,5.45641529,165.95,165.82,20.0]
[1721938412116,5.45641529,165.95,165.83,65.52471476]
[1721938412319,5.45641529,165.95,165.84,65.0]
[1721938412492,5.45641529,165.95,165.85,0.52494693]
[1721938412816,5.45641529,165.95,165.86,0.52502063]
[1721938413014,5.45641529,165.95,165.86,20.52502063]
[1721938413184,5.45641529,165.95,165.87,45.0]
[1721938413390,5.45641529,165.95,165.88,20.5245861]
[1721938413599,5.45641529,165.95,165.89,45.0]
[1721938413816,5.45641529,165.95,165.9,20.52458991]
[1721938413991,5.45641529,165.95,165.91,45.0]
[1721938414191,5.45641529,165.95,165.92,20.52396927]
[1721938414506,5.45641529,165.95,165.93,45.0]
[1721938414703,5.45641529,165.95,165.94,20.0]
[1721938415399,1.50644776,166.01,165.85,20.52413712]
[1721938415720,1.50643533,166.01,165.86,45.52463066]
[1721938416013,1.50643533,166.01,165.86,0.52463066]
[1721938416202,1.50643533,166.01,165.86,20.52463066]
[1721938416411,1.50643533,166.01,165.87,45.0]
[1721938416609,7.52983363,166.02,165.88,20.5246266]
[1721938416911,7.53020805,166.01,165.88,20.0]
[1721938417118,1.50650805,166.01,165.88,20.0]
[1721938417618,7.52998633,166.02,165.89,45.52499306]
[1721938417796,6.0234,166.02,165.9,20.52462082]
[1721938418000,1.50643234,166.02,165.9,20.52462082]
[1721938418201,6.0238,166.01,165.9,20.52462082]
[1721938419026,7.52983234,166.02,165.9,20.52462082]
[1721938419238,6.16384248,166.05,165.9,20.52462082]
[1721938419522,6.16384248,166.05,165.91,45.0]
[1721938419813,1.50607737,166.04,165.92,20.52377155]
[1721938420018,1.50607737,166.04,165.93,45.0]
[1721938420196,1.5060772,166.04,165.94,20.0]
[1721938420598,6.16384248,166.05,165.94,20.52356835]
[1721938420796,1.5059212,166.04,165.94,20.0]
[1721938421018,7.67461829,166.04,165.94,20.0]
[1721938421198,1.50608365,166.03,165.93,20.0]
[1721938421697,6.16883036,166.05,165.93,20.0]
[1721938422098,1.50596164,166.04,165.93,20.0]
[1721938422703,7.52866164,166.04,165.93,20.0]
[1721938422907,1.50596164,166.04,165.93,20.0]
[1721938423114,1.50596164,166.04,165.92,15.4022]
[1721938423325,6.024,166.01,165.86,6.0612]
[1721938423523,1.50649268,166.0,165.87,0.5247683]
[1721938423821,7.52938515,166.03,165.87,0.5247683]
[1721938424025,1.50628515,166.03,165.87,0.5247683]
[1721938424203,12.19088139,166.06,165.87,0.5247683]
[1721938424402,1.50601743,166.05,165.87,45.5247683]
[1721938424605,1.50581341,166.09,165.89,20.0]
[1721938424798,7.52691341,166.09,165.9,65.52307677]
[1721938425009,13.69589441,166.09,165.9,65.52307677]
[1721938425204,7.67479441,166.09,165.9,54.88677677]
[1721938425423,7.67479441,166.09,165.9,45.0]
[1721938425807,6.0219,166.06,165.9,45.0]
[1721938425998,1.50596465,166.05,165.9,45.0]
[1721938426202,1.50596349,166.04,165.9,45.0]
[1721938427133,1.50603694,166.06,165.9,45.0]
[1721938427422,1.50603694,166.06,165.91,20.0]
[1721938427634,1.50603694,166.06,165.92,45.0]
[1721938427924,1.5060678,166.08,165.93,20.0]
[1721938428124,1.5060678,166.08,165.94,45.0]
[1721938428328,1.50590117,166.07,165.95,20.0]
[1721938428827,1.50580878,166.07,165.96,45.0]
[1721938429323,1.50580878,166.07,165.88,20.0]
[1721938429526,1.50580878,166.07,165.89,65.0]
[1721938429901,6.0219,166.06,165.89,65.0]
[1721938430104,1.50595627,166.07,165.89,65.0]
[1721938430302,6.0221,166.06,165.89,65.0]
[1721938430523,1.5059056,166.05,165.89,65.0]
[1721938430729,7.67488986,166.09,165.89,85.0]
[1721938430912,13.69598986,166.09,165.89,85.0]
[1721938431105,13.69598986,166.09,165.9,16.2487]
[1721938431312,13.69598986,166.09,165.91,65.0]
[1721938431510,1.50590886,166.09,165.92,6.1794]
[1721938431703,6.16892742,166.1,165.92,6.1794]
[1721938431704,6.16892742,166.1,165.93,85.0]
[1721938431906,7.67439194,166.1,165.93,85.0]
[1721938432404,6.16892742,166.1,165.96,16.2487]
[1721938432606,6.16892742,166.1,165.98,6.1794]
[1721938432804,6.16892742,166.1,165.99,85.0]
[1721938433007,1.505062,166.14,165.99,65.0]
[1721938433616,7.524362,166.14,165.99,20.0]
[1721938433820,6.0194,166.13,165.99,20.0]
[1721938434020,1.5052554,166.13,165.99,20.0]
[1721938434853,1.5052554,166.13,166.0,45.0]
[1721938435014,1.5052554,166.13,166.01,20.0]
[1721938435218,1.5052554,166.13,166.02,45.0]
[1721938435412,1.50502103,166.14,166.02,45.0]
[1721938436114,7.50187517,166.15,166.03,20.0]
[1721938436420,1.50477535,166.14,166.04,45.0]
[1721938436738,1.50477535,166.14,165.98,6.1794]
[1721938436910,6.0197,166.12,165.99,45.0]
[1721938437113,5.997,166.15,165.98,6.1794]
[1721938437114,6.0205,166.1,166.0,20.0]
[1721938437418,1.50549774,166.1,165.99,20.0]
[1721938437623,1.50548348,166.13,165.99,20.0]
[1721938437931,6.0197,166.12,165.99,20.0]
[1721938438127,1.50536923,166.11,165.99,20.0]
[1721938438331,1.50536923,166.11,166.0,45.0]
[1721938438535,1.50505377,166.14,166.01,20.0]
[1721938439240,6.0193,166.13,166.01,20.0]
[1721938439403,6.0193,166.13,166.02,45.0]